fUSD/lending_fUSD_20250404
["ID","MTS","AMOUNT","RATE_DAILY","PERIOD"]
[357113049,1743750640722,-150.0,0.000566,120]
[357113051,1743750640732,-3072.63245633,0.0005664,4]
[357113053,1743750640743,-18435.794738,0.0005665,4]
[357113056,1743750640752,-617.0,0.0005665,30]
[357113058,1743750640762,-28500.0,0.0005666,35]
[357113060,1743750640771,-200.0,0.00056671,15]
[357113061,1743750640780,-500.0,0.00056673,5]
[357113064,1743750640790,-3072.63245633,0.0005669,4]
[357113065,1743750640799,-2000.0,0.000567,90]
[357113068,1743750640809,-249.3815,0.0005689,2]
[357113070,1743750640818,-908.2875837,0.000569,15]
[357113072,1743750640828,-166.66,0.00056926,2]
[357113074,1743750640837,-3072.63245633,0.0005699,4]
[357113075,1743750640846,-150.34,0.0005699,120]
[357113078,1743750640856,-1473.02768049,0.00057,58]
[357113079,1743750640865,-38958.93424882,0.00057,57]
[357113083,1743750640886,-2640.23705102,0.00057,57]
[357113085,1743750640898,-1363.83747749,0.00057,57]
[357113087,1743750640909,-1848.58418204,0.00057,57]
[357113092,1743750640948,-1540.92105376,0.00057,57]
[357113095,1743750640967,-543.41419016,0.00057,57]
[357113097,1743750640978,-202588.48222443,0.00057,57]
[357113099,1743750640987,-2058.94429272,0.00057,120]
[357113101,1743750640997,-212.59528974,0.00057,60]
[357113103,1743750641007,-1000.0,0.00057,2]
[357113105,1743750641015,-635.68729031,0.00057,30]
[357113107,1743750641025,-373.0,0.000571,30]
[357113109,1743750641034,-756.0,0.000571,30]
[357113111,1743750641044,-236.0,0.000571,30]
[357113113,1743750641053,-2000.0,0.00057182,8]
[357113115,1743750641062,-1152.05,0.00057252,2]
[357113117,1743750641071,-150.0,0.00057355,120]
[357113119,1743750641080,-3072.63245633,0.00057437,4]
[357113121,1743750641090,-2563.04,0.00057447,2]
[357113123,1743750641099,-1654.96082108,0.000579,29]
[357113125,1743750641108,-3072.63245633,0.0005799,4]
[357113127,1743750641117,-298.0,0.00058,120]
[357113129,1743750641126,-597.0,0.00058,120]
[357113131,1743750641135,-301.0,0.00058176,30]
[357113133,1743750641144,-9217.89736899,0.0005819,4]
[357113135,1743750641153,-12658.4,0.000582,2]
[357113137,1743750641162,-2531.68,0.000582,2]
[357113139,1743750641171,-455.96264722,0.000582,2]
[357113149,1743750641251,-150.0,0.000503,2]
[357113151,1743750641260,-2075.71735278,0.000582,2]
[357113153,1743750641269,-3072.63245633,0.00058342,4]
[357113155,1743750641278,-200.0,0.00058513,120]
[357113157,1743750641288,-150.0,0.000587,120]
[357113159,1743750641297,-154.77,0.000587,60]
[357113161,1743750641306,-154.77,0.000587,60]
[357113163,1743750641315,-154.77,0.000587,60]
[357113165,1743750641324,-154.77,0.000587,60]
[357113167,1743750641333,-154.77,0.000587,60]
[357113169,1743750641342,-500.0,0.00058854,15]
[357113171,1743750641352,-500.0,0.00058854,15]
[357113173,1743750641361,-500.0,0.00058904,120]
[357113175,1743750641370,-250.0,0.0005897,30]
[357113177,1743750641380,-450.0,0.0005897,30]
[357113179,1743750641390,-10049.76279483,0.00059,120]
[357113181,1743750641399,-1050.0,0.00059,2]
[357113183,1743750641409,-166.66,0.00059016,2]
[357113185,1743750641422,-908.2875837,0.00059233,15]
[357113187,1743750641431,-1587.0,0.00059316,25]
[357113189,1743750641442,-166.68,0.00059317,2]
[357113191,1743750641452,-237.66,0.00059324,2]
[357113193,1743750641461,-1002.38334557,0.00059352,15]
[357113194,1743750641470,-172.21601896,0.00059416,28]
[357113195,1743750641479,-563.7767896,0.00059452,120]
[357113196,1743750641489,-2000.0,0.000595,90]
[357113197,1743750641499,-1152.05,0.00059516,2]
[357113198,1743750641507,-283.0,0.00059549,13]
[357113199,1743750641516,-200.0,0.00059549,2]
[357113200,1743750641525,-200.0,0.00059549,2]
[357113201,1743750641534,-200.0,0.00059549,2]
[357113202,1743750641543,-200.0,0.00059549,2]
[357113203,1743750641552,-200.0,0.00059549,2]
[357113204,1743750641561,-200.0,0.00059549,2]
[357113206,1743750641569,-200.0,0.00059549,2]
[357113208,1743750641580,-200.0,0.00059549,2]
[357113209,1743750641589,-153.0,0.00059549,2]
[357113211,1743750641599,-166.02,0.00059616,120]
[357113225,1743750641717,-150.34,0.0005989,120]
[357113227,1743750641727,-1705.05569049,0.00059893,120]
[357113229,1743750641736,-54533.7657,0.000599,2]
[357113231,1743750641745,-856.3153,0.000599,2]
[357113233,1743750641755,-150.0,0.000599,120]
[357113235,1743750641764,-150.34,0.0005998,120]
[357113237,1743750641773,-150.34,0.0005998,120]
[357113239,1743750641784,-150.34,0.0005998,120]
[357113241,1743750641806,-17868.4516723,0.0005999,5]
[357113243,1743750641827,-499.06,0.00059995,30]
[357113245,1743750641850,-298.0,0.0006,120]
[357113247,1743750641872,-597.0,0.0006,120]
[357113249,1743750641895,-494.75921272,0.0006,120]
[357113251,1743750641917,-311.29296257,0.0006,120]
[357113253,1743750641941,-1136.25855615,0.0006,30]
[357113255,1743750641983,-935.66830341,0.0006,120]
[357113257,1743750642020,-769.14,0.0006,120]
[357113259,1743750642051,-150.0,0.0006,30]
[357113261,1743750642068,-1340.38069404,0.0006,106]
[357113263,1743750642078,-680.09003483,0.0006,120]
[357113265,1743750642088,-1000.0,0.0006,120]
[357113267,1743750642098,-500.0,0.0006,5]
[357113269,1743750642108,-150.0,0.00060121,120]
[357113271,1743750642118,-2563.04,0.00060183,2]
[357113273,1743750642127,-3078.0,0.00060274,120]
[357113275,1743750642137,-151.0,0.00060685,120]
[357113277,1743750642146,-1000.0,0.0006074,120]
[357113279,1743750642156,-1100.0,0.00061,2]
[357113281,1743750642166,-937.51627942,0.00061455,12]
[357113284,1743750642179,-798.52623198,0.00061455,12]
[357113286,1743750642192,-263.9574886,0.00061455,12]
[357113288,1743750642202,-636.0425114,0.00061567,15]
[357113290,1743750642213,-272.2450723,0.00061567,15]
[357113292,1743750642223,-369.09,0.00061629,120]
[357113294,1743750642232,-197.7,0.00061629,120]
[357113296,1743750642242,-191.7888877,0.0006178,2]
[357113298,1743750642254,-960.2611123,0.0006178,2]
[357113300,1743750642264,-499.77,0.000618,120]
[357113302,1743750642274,-34.82860236,0.000618,120]
[357113305,1743750642292,-559.96139764,0.000618,120]
[357113307,1743750642301,-181.24,0.000618,120]
[357113309,1743750642310,-255.16,0.000618,120]
[357113311,1743750642320,-298.0,0.00062,120]
[357113313,1743750642332,-597.0,0.00062,120]
[357113315,1743750642341,-500.0,0.00062,120]
[357113317,1743750642351,-500.0,0.00062199,30]
[357113319,1743750642361,-2000.0,0.000622,90]
[357113321,1743750642370,-237.66,0.0006229,2]
[357113323,1743750642380,-502.246691,0.00062378,14]
[357113325,1743750642389,-2028.2533,0.00062797,2]
[357113327,1743750642399,-157.49420022,0.00062798,5]
[357113331,1743750642424,-4000.0,0.00062798,5]
[357113333,1743750642436,-1771.96607913,0.00062798,5]
[357113335,1743750642450,-500.0,0.00062798,5]
[357113338,1743750642470,-150.0,0.0005067,7]
[357113340,1743750642480,-1581.98,0.00062798,5]
[357113459,1743750643355,-150.0,0.00052,30]
[357113461,1743750643365,-168.0,0.00054098,90]
[357113464,1743750643375,-168.0,0.00054098,90]
[357113469,1743750643385,-14.0,0.00062798,5]
[357113471,1743750643399,-6735.58384872,0.00062798,5]
[357113473,1743750643411,-1986.82732598,0.00062798,5]
[357113537,1743750644022,-1120.60021825,0.00062798,5]
[357113539,1743750644031,-159.8164413,0.0006287,91]
[357113541,1743750644041,-85.25349479,0.00062879,120]
[357113544,1743750644054,-459.39764677,0.00062879,120]
[357113550,1743750644205,-727.85745844,0.00062879,120]
[357113552,1743750644215,-150.0,0.00062888,120]
[357113554,1743750644226,-8245.87878872,0.00062897,120]
[357113556,1743750644237,-6754.12121128,0.00062897,120]
[357113558,1743750644246,-2563.04,0.00062918,2]
[357113560,1743750644256,-150.34,0.00062949,120]
[357113562,1743750644266,-150.34,0.00062958,120]
[357113564,1743750644275,-150.34,0.00062958,120]
[357113566,1743750644285,-71473.8066893,0.00062959,5]
[357113568,1743750644295,-53605.355017,0.00062959,5]
[357113570,1743750644304,-150.34,0.0006296,120]
[357113572,1743750644315,-17485.664933,0.00062968,5]
[357113784,1743750646409,-150.0,0.00052849,120]
[357113785,1743750646422,-168.0,0.00054098,90]
[357113786,1743750646432,-168.0,0.00054098,90]
[357113787,1743750646441,-168.0,0.00054098,90]
[357113788,1743750646451,-168.0,0.00054098,90]
[357113790,1743750646460,-168.0,0.00054098,90]
[357113791,1743750646470,-168.0,0.00054098,90]
[357113793,1743750646479,-168.0,0.00054098,90]
[357113795,1743750646489,-168.0,0.00054098,90]
[357113797,1743750646500,-168.0,0.00054098,90]
[357113799,1743750646511,-168.0,0.00054098,90]
[357113802,1743750646520,-150.0,0.0006,120]
[357113804,1743750646530,-14801.45137449,0.00062968,5]
[357113806,1743750646543,-287.74186022,0.00062968,5]
[357113808,1743750646554,-494.42052,0.00062968,5]
[357113831,1743750646767,-2438.61450858,0.00062968,5]
[357113833,1743750646778,-9068.4486635,0.00062968,5]
[357113836,1743750646793,-21039.43517296,0.00062968,5]
[357113838,1743750646818,-59463.38467325,0.00062968,5]
[357113840,1743750646840,-107210.710034,0.0006297,5]
[357113842,1743750646862,-53605.355017,0.0006298,5]
[357113844,1743750646882,-150.34,0.0006298,120]
[357113846,1743750646904,-150.34,0.0006298,120]
[357113848,1743750646925,-1000.0,0.00062989,2]
[357113850,1743750646946,-1000.0,0.00062989,2]
[357113852,1743750646975,-1000.0,0.00062989,2]
[357113854,1743750647001,-1000.0,0.00062989,2]
[357113856,1743750647037,-1000.0,0.00062989,2]
[357113858,1743750647061,-1000.0,0.00062989,2]
[357113860,1743750647083,-1000.0,0.00062989,2]
[357113862,1743750647104,-1000.0,0.00062989,2]
[357113864,1743750647125,-1095.76463397,0.00062989,2]
[357113866,1743750647145,-162.77,0.00062989,120]
[357113868,1743750647168,-67180.64217686,0.0006299,5]
[357115169,1743750908283,15652.359585,7.945e-05,2]
[357115170,1743751519415,462.69949179,9e-05,2]
[357115172,1743751647795,-157.91,0.000153,2]
[357115173,1743751647822,-308.83161985,0.00019999,2]
[357115174,1743751647848,-500.0,0.00019999,2]
[357115175,1743751647874,-233.59143346,0.00019999,2]
[357115176,1743751647899,-500.0,0.00019999,2]
[357115177,1743751647924,-500.0,0.00019999,2]
[357115178,1743751647948,-500.0,0.00019999,2]
[357115179,1743751647974,-500.0,0.00019999,2]
[357115180,1743751647998,-500.0,0.00019999,2]
[357115181,1743751648022,-500.0,0.00019999,2]
[357115182,1743751648047,-500.0,0.00019999,2]
[357115183,1743751648071,-4999.99,0.0002,2]
[357115184,1743751648101,-490299.67694669,0.0002,2]
[357115186,1743751715635,701.96167112,0.000149,2]
[357115193,1743751755306,-25153.0310029,0.0001999,2]
[357115194,1743751755329,-1000.0,0.00019999,2]
[357115195,1743751755357,-2357569.32158483,0.0002,2]
[357115210,1743751832395,-249.81174537,0.000199,2]
[357115211,1743751832406,-156.75433996,0.0001995,2]
[357115213,1743751832416,-26153.0310029,0.0002,2]
[357115215,1743751832425,-501.58752862,0.0002005,2]
[357115217,1743751832436,-169.33200726,0.0002005,2]
[357115218,1743751832445,-1668.61138415,0.0002015,2]
[357115219,1743751832455,-3450.61568176,0.000209,2]
[357115220,1743751832464,-1546.06201985,0.00021,2]
[357115221,1743751832476,-167.42,0.0002125,2]
[357115222,1743751832487,-350.0,0.0002189,12]
[357115223,1743751832496,-156.75433994,0.00022362,2]
[357115224,1743751832505,-503.65607221,0.0002271,2]
[357115225,1743751832515,-280.361627,0.00023,2]
[357115226,1743751832525,-402.01720887,0.0002301,2]
[357115227,1743751832534,-501.47327578,0.00024773,2]
[357115228,1743751832544,-500.0,0.00024773,2]
[357115229,1743751832554,-156.75433994,0.00024773,2]
[357115230,1743751832563,-1352.69839247,0.00024773,2]
[357115231,1743751832573,-150.0,0.00024799,2]
[357115232,1743751832583,-203.37291683,0.00024799,2]
[357115233,1743751832592,-19650.32491782,0.000248,2]
[357115234,1743751832604,-443.2847231,0.000248,2]
[357115235,1743751832615,-109533.23629008,0.000248,2]
[357115236,1743751832625,-499.71161093,0.00024873,2]
[357115237,1743751832635,-445.68840738,0.00024873,2]
[357115238,1743751832644,-150.34,0.0002489,2]
[357115239,1743751832654,-481393.986752,0.000249,2]
[357115240,1743751832663,-1839.48936103,0.00025,2]
[357115241,1743751832672,-1756.1689942,0.00025,2]
[357115242,1743751832681,-1024.20272401,0.00025,2]
[357115243,1743751832691,-160.93339411,0.00025,2]
[357115244,1743751832700,-3250.5879114,0.000251,2]
[357115245,1743751832710,-576.86654986,0.0002599,2]
[357115246,1743751832720,-3450.61568171,0.0002633,2]
[357115247,1743751832729,-422.55,0.00026849,2]
[357115248,1743751832738,-250.0,0.00027,2]
[357115249,1743751832747,-4270.08765063,0.000275,2]
[357115250,1743751832761,-1352.69839241,0.00028009,2]
[357115251,1743751832770,-300.0,0.00029,2]
[357115252,1743751832779,-941.88,0.00029811,2]
[357115253,1743751832788,-150.34,0.0002999,2]
[357115254,1743751832799,-60895.28772816,0.0003,20]
[357115255,1743751832810,-287.35883568,0.0003,2]
[357115256,1743751832819,-9999.99,0.0003,2]
[357115257,1743751832829,-12049.91,0.0003,10]
[357115258,1743751832839,-9999.99,0.0003,2]
[357115259,1743751832849,-350.0,0.00031,2]
[357115260,1743751832858,-1352.69839241,0.00031246,2]
[357115261,1743751832867,-3450.61568171,0.0003176,2]
[357115262,1743751832877,-2006.94,0.000318,2]
[357115263,1743751832887,-941.88,0.00032075,2]
[357115264,1743751832896,-1081.87014517,0.00032596,4]
[357115265,1743751832905,-422.55,0.00032646,2]
[357115266,1743751832915,-400.0,0.00033,2]
[357115267,1743751832924,-150.0,0.00033581,7]
[357115268,1743751832934,-941.88,0.00034339,2]
[357115269,1743751832944,-1352.69839241,0.00034482,2]
[357115270,1743751832953,-1544.63009974,0.00034621,7]
[357115271,1743751832963,-450.0,0.00035,2]
[357115272,1743751832974,-168.87,0.00035,2]
[357115274,1743751832983,-168.97733894,0.00035,30]
[357115276,1743751832993,-226.81808156,0.00035,2]
[357115278,1743751833002,-219.69,0.00035,2]
[357115280,1743751833012,-835.6484072,0.00035621,16]
[357115282,1743751833022,-641.70743318,0.00035621,2]
[357115284,1743751833031,-224.90118928,0.00035621,2]
[357115286,1743751833040,-372.47019982,0.00035621,20]
[357115288,1743751833050,-2578.97647798,0.00035621,2]
[357115290,1743751833060,-1601.19720165,0.00035621,5]
[357115293,1743751833069,-4369.46298944,0.00035621,2]
[357115296,1743751833078,-2630.21651551,0.00035621,2]
[357115299,1743751833087,-760.08395079,0.00035621,2]
[357115302,1743751833097,-1043.23603722,0.00035621,2]
[357115305,1743751833107,-900.90481143,0.00035621,2]
[357115307,1743751833117,-5058.6627891,0.00035621,2]
[357115310,1743751833127,-2003.38027099,0.00035621,2]
[357115313,1743751833137,-199.18486211,0.00035621,2]
[357115316,1743751833147,-910.21172479,0.00035621,2]
[357115318,1743751833157,-4783.95807841,0.00035621,2]
[357115320,1743751833167,-2330.7043103,0.00035621,2]
[357115322,1743751833177,-413.626629,0.00035621,3]
[357115324,1743751833186,-869.67103383,0.00035621,2]
[357115326,1743751833195,-642.7287071,0.00036,2]
[357115328,1743751833204,-9819.42540923,0.000366,2]
[357115330,1743751833214,-941.88,0.00036603,2]
[357115332,1743751833225,-500.0,0.00037,2]
[357115334,1743751833234,-3450.61568171,0.0003719,2]
[357115336,1743751833243,-150.34,0.0003758,2]
[357115338,1743751833253,-4185.36516485,0.0003759,2]
[357115340,1743751833263,-1352.69839241,0.00037718,2]
[357115342,1743751833272,-167.63513931,0.000378,2]
[357115344,1743751833282,-422.55,0.00038443,2]
[357115346,1743751833293,-941.88,0.00038867,2]
[357115348,1743751833303,-550.0,0.00039,2]
[357115350,1743751833313,-150.54830074,0.00039,120]
[357115352,1743751833323,-588.43343924,0.0004,2]
[357115354,1743751833332,-151.23857355,0.0004,30]
[357115356,1743751833342,-9240.38461652,0.0004,3]
[357115358,1743751833352,-261.45805039,0.0004,2]
[357115360,1743751833363,-378.05420694,0.0004,2]
[357115362,1743751833373,-211.88683105,0.0004,2]
[357115364,1743751833384,-157.42106849,0.0004,120]
[357115366,1743751833395,-1352.69839241,0.00040955,15]
[357115368,1743751833405,-941.88,0.00041131,2]
[357115370,1743751833416,-559.0,0.00041133,2]
[357115372,1743751833426,-309.04801551,0.00042,120]
[357115373,1743751833436,-3450.61568171,0.0004262,15]
[357115376,1743751833447,-941.88,0.00043395,2]
[357115377,1743751833457,-152.31499042,0.0004399,30]
[357115380,1743751833467,-422.55,0.00044239,2]
[357115381,1743751833481,-1000.0,0.00045,120]
[357115383,1743751833491,-1000.0,0.00045,7]
[357115384,1743751833501,-1000.0,0.00045,7]
[357115385,1743751833510,-1000.0,0.00045,7]
[357115386,1743751833520,-1000.0,0.00045,7]
[357115387,1743751833529,-1000.0,0.00045,7]
[357115388,1743751833539,-1000.0,0.00045,7]
[357115389,1743751833549,-1000.0,0.00045,7]
[357115390,1743751833559,-1000.0,0.00045,7]
[357115391,1743751833568,-1000.0,0.00045,7]
[357115392,1743751833577,-1000.0,0.00045,7]
[357115393,1743751833586,-1000.0,0.00045,7]
[357115394,1743751833596,-2157.06809181,0.00045,2]
[357115395,1743751833606,-941.88,0.00045658,2]
[357115396,1743751833615,-595.13050474,0.000459,119]
[357115397,1743751833624,-731.78991961,0.00046387,2]
[357115398,1743751833634,-500.0,0.0004689,30]
[357115399,1743751833644,-2093.12,0.00047,14]
[357115400,1743751833653,-500.0,0.00047067,30]
[357115401,1743751833663,-958.24954821,0.00047495,120]
[357115402,1743751833672,-888.80672298,0.00047576,30]
[357115403,1743751833681,-5231.53401615,0.000476,2]
[357115404,1743751833690,-917.97422501,0.00047816,120]
[357115405,1743751833699,-941.88,0.00047922,2]
[357115406,1743751833709,-1000.0,0.00048,7]
[357115407,1743751833721,-1000.0,0.00048,7]
[357115408,1743751833732,-1000.0,0.00048,7]
[357115409,1743751833743,-1000.0,0.00048,7]
[357115410,1743751833753,-1000.0,0.00048,7]
[357115411,1743751833766,-1000.0,0.00048,7]
[357115412,1743751833775,-1000.0,0.00048,7]
[357115413,1743751833786,-3450.61568171,0.0004805,15]
[357115414,1743751833796,-741.00478832,0.00048348,30]
[357115415,1743751833807,-500.0,0.0004858,30]
[357115416,1743751833817,-150.34,0.0004879,2]
[357115417,1743751833827,-69253.82467244,0.000488,120]
[357115418,1743751833839,-260.38453383,0.000488,10]
[357115419,1743751833849,-4104.7030096,0.00049,5]
[357115420,1743751833859,-204.45094451,0.00049,7]
[357115421,1743751833869,-158.44,0.0004916,2]
[357115422,1743751833878,-502.14375085,0.00049315,5]
[357115423,1743751833887,-156.91555468,0.000498,30]
[357115424,1743751833897,-500.0,0.00049849,30]
[357115425,1743751833907,-395.53504938,0.000499,7]
[357115426,1743751833917,-169.33200724,0.00049975,28]
[357115427,1743751833926,-705.0,0.0005,15]
[357115428,1743751833937,-2240.0,0.0005,120]
[357115429,1743751833947,-1000.0,0.0005,7]
[357115430,1743751833957,-1000.0,0.0005,7]
[357115431,1743751833969,-1000.0,0.0005,7]
[357115432,1743751833979,-2911.12796644,0.0005,3]
[357115433,1743751833989,-154.15079231,0.0005,120]
[357115434,1743751833998,-3983.45243761,0.0005,5]
[357115435,1743751834009,-210.66470989,0.0005,2]
[357115436,1743751834019,-1135.62901582,0.0005,2]
[357115437,1743751834029,-764.67880821,0.0005,7]
[357115438,1743751834040,-1515.58787025,0.0005,2]
[357115439,1743751834049,-347.79614234,0.0005,120]
[357115440,1743751834059,-422.55,0.00050036,2]
[357115441,1743751834069,-941.88,0.00050186,2]
[357115442,1743751834079,-613.3,0.00050881,91]
[357115443,1743751834088,-600.91234834,0.00051107,60]
[357115444,1743751834098,-500.0,0.00051581,60]
[357115445,1743751834107,-500.0,0.00051708,60]
[357115446,1743751834117,-192.793727,0.000519,120]
[357115447,1743751834127,-150.34,0.0005199,120]
[357115448,1743751834136,-150.34,0.0005199,120]
[357115449,1743751834146,-150.34,0.0005199,120]
[357115450,1743751834155,-150.34,0.0005199,120]
[357115451,1743751834165,-150.34,0.0005199,120]
[357115452,1743751834175,-150.34,0.0005199,120]
[357115453,1743751834184,-150.34,0.0005199,120]
[357115454,1743751834193,-150.34,0.0005199,120]
[357115455,1743751834202,-150.34,0.0005199,120]
[357115456,1743751834212,-150.34,0.0005199,120]
[357115457,1743751834223,-150.34,0.0005199,120]
[357115458,1743751834232,-150.34,0.0005199,120]
[357115459,1743751834242,-150.34,0.0005199,120]
[357115460,1743751834253,-150.34,0.0005199,120]
[357115461,1743751834262,-150.34,0.0005199,120]
[357115462,1743751834272,-150.34,0.0005199,120]
[357115463,1743751834283,-150.34,0.0005199,120]
[357115464,1743751834293,-150.34,0.0005199,120]
[357115465,1743751834303,-150.34,0.0005199,120]
[357115466,1743751834313,-150.34,0.0005199,120]
[357115467,1743751834322,-150.34,0.0005199,120]
[357115468,1743751834332,-150.34,0.0005199,120]
[357115469,1743751834342,-150.34,0.0005199,120]
[357115470,1743751834351,-150.34,0.0005199,120]
[357115471,1743751834361,-150.34,0.0005199,120]
[357115472,1743751834371,-150.34,0.0005199,120]
[357115473,1743751834380,-150.34,0.0005199,120]
[357115474,1743751834391,-188.09936792,0.00051998,120]
[357115475,1743751834401,-510.1622071,0.00052,120]
[357115476,1743751834411,-209567.65591493,0.00052,120]
[357115477,1743751834425,-578216.92677303,0.00052,120]
[357115478,1743751834449,-335.89212642,0.00052,120]
[357115479,1743751834459,-6520.98953802,0.00052,120]
[357115480,1743751834473,-328.01300429,0.00052,120]
[357115481,1743751834485,-544.0998858,0.00052,120]
[357115482,1743751834500,-5641.34742807,0.00052,120]
[357115483,1743751834512,-35372.87119657,0.00052,120]
[357115484,1743751834523,-1361.37018611,0.00052,120]
[357115485,1743751834534,-430.7134905,0.00052,120]
[357115486,1743751834545,-3464.22267581,0.00052,120]
[357115487,1743751834672,-3925.50276661,0.00052,120]
[357115488,1743751834684,-2618.47505367,0.00052,120]
[357115489,1743751834696,-2528.35218345,0.00052,120]
[357115490,1743751834707,-796.69487304,0.00052,120]
[357115491,1743751834722,-686.38615094,0.00052,120]
[357115492,1743751834737,-3961.95512933,0.00052,120]
[357115493,1743751834749,-3300.000006,0.00052,120]
[357115494,1743751834762,-397.09512393,0.00052,120]
[357115495,1743751834777,-1872.68017004,0.00052,120]
[357115498,1743751838292,-470.39904816,0.00019999,2]
[357115499,1743751838301,-624.1883962,0.00044191,15]
[357115500,1743751838408,-728.50999621,0.00044191,15]
[357115501,1743751838416,-500.0,0.00049315,120]
[357115502,1743751838426,-500.0,0.00049315,120]
[357115503,1743751838435,-500.0,0.00049315,120]
[357115504,1743751838445,-500.0,0.00049315,120]
[357115505,1743751838454,-500.0,0.00049315,120]
[357115506,1743751838463,-500.0,0.00049315,120]
[357115507,1743751838473,-500.0,0.00049315,120]
[357115508,1743751838482,-217.62675561,0.00049315,120]
[357115509,1743751838491,-500.0,0.00049315,120]
[357115510,1743751838499,-500.0,0.00049315,120]
[357115511,1743751838509,-500.0,0.00049315,120]
[357115512,1743751838518,-500.0,0.00049315,120]
[357115513,1743751838527,-24885.69063793,0.00052,120]
[357115514,1743751838538,-113578.95781193,0.00052,120]
[357115515,1743751838547,-1000000.0,0.00052,120]
[357115516,1743751838556,-1000000.0,0.00052,120]
[357115517,1743751838565,-18396.64,0.00052,60]
[357115518,1743751838574,-151.0,0.00052,120]
[357115519,1743751838584,-151.888754,0.00052,120]
[357115520,1743751838593,-158.44,0.00052233,2]
[357115522,1743751838603,-941.88,0.0005245,2]
[357115524,1743751838612,-501.58752862,0.00052475,80]
[357115525,1743751838621,-504.94309263,0.0005249,10]
[357115528,1743751838630,-500.0,0.0005249,10]
[357115529,1743751838639,-575.14300845,0.00053,2]
[357115531,1743751838649,-1863.02962776,0.00053,120]
[357115534,1743751838659,-500.0,0.00053081,60]
[357115536,1743751838668,-617.54,0.00053086,2]
[357115538,1743751838677,-2000.0,0.000532,2]
[357115539,1743751838687,-445.82737886,0.0005331,2]
[357115541,1743751838696,-3450.61568171,0.0005348,15]
[357115544,1743751838706,-647.73,0.00053484,2]
[357115545,1743751838715,-2093.12,0.000535,60]
[357115547,1743751838727,-193.24,0.00053502,120]
[357115549,1743751838736,-150.0,0.00053572,120]
[357115551,1743751838745,-166.02,0.00053698,120]
[357115553,1743751838755,-150.34,0.0005399,120]
[357115555,1743751838765,-150.34,0.0005399,120]
[357115557,1743751838778,-150.34,0.0005399,120]
[357115561,1743751838788,-150.34,0.0005399,120]
[357115562,1743751838798,-150.34,0.0005399,120]
[357115565,1743751838807,-150.34,0.0005399,120]
[357115568,1743751838816,-150.34,0.0005399,120]
[357115570,1743751838825,-150.34,0.0005399,120]
[357115572,1743751838835,-150.34,0.0005399,120]
[357115574,1743751838846,-150.34,0.0005399,120]
[357115575,1743751838855,-150.34,0.0005399,120]
[357115576,1743751838864,-150.34,0.0005399,120]
[357115577,1743751838874,-150.34,0.0005399,120]
[357115578,1743751838883,-150.34,0.0005399,120]
[357115579,1743751838892,-150.34,0.0005399,120]
[357115580,1743751838901,-150.34,0.0005399,120]
[357115581,1743751838910,-150.34,0.0005399,120]
[357115582,1743751838919,-150.34,0.0005399,120]
[357115583,1743751838928,-150.34,0.0005399,120]
[357115584,1743751838938,-150.34,0.0005399,120]
[357115585,1743751838947,-150.34,0.0005399,120]
[357115586,1743751838956,-150.34,0.0005399,120]
[357115587,1743751838965,-150.34,0.0005399,120]
[357115588,1743751838974,-150.34,0.0005399,120]
[357115589,1743751838983,-150.34,0.0005399,120]